Cogmind - Beta 15 @@@ ROGUE MODE // 2025.08.06 @ 22:21:47 Player: shapeshifter Result: Self-destructed Performance ------------- Evolutions (5) 2500 Regions Visited (4) 800 Robots Destroyed (12) 60 Value Destroyed (461) 461 Prototype IDs (7) 140 Alien Tech Used (0) 0 Bonus (800) 800 TOTAL SCORE: 4761 Bonus ------- Registered with UFD 300 Met Optimus in HQ 500 Cogmind --------- Core Integrity 804/1000 Matter 9/300 Energy 200/200 System Corruption 16% Temperature Cool (0) Movement Treading (250) Ox1 Location -5/Factory Parts ------- > --- POWER (2) -------- Light Angular Momentum Engine Light Angular Momentum Engine > --- PROPULSION (4) --- Armored Medium Treads > --- UTILITY (9) ------ Large Storage Unit Enhanced Optical Array Seismic Detector Improved Power Shielding > --- WEAPON (2) ------- Heavy Phase Cannon > --- INVENTORY (15) --- Fission Core Experimental Terrain Scan Processor Surveybot 17 Chip Mapping Drone Bay (3/3) CPS Tube (2) CPS Tube (2) CPS Tube (2) Companion Sword Botcube Peak State ------------ > --- POWER ------------ Light Angular Momentum Engine Light Angular Momentum Engine > --- PROPULSION ------- Light Treads Light Treads Medium Treads Armored Medium Treads > --- UTILITY ---------- Scrap Suit Improved Heat Sink Large Storage Unit Enhanced Optical Array Seismic Detector Improved Power Shielding Force Field > --- WEAPON ----------- Lightning Gun Assault Rifle > --- INVENTORY -------- Experimental Terrain Scan Processor Surveybot 17 Chip Mapping Drone Bay Light Assault Rifle Missile Launcher CPS Tube CPS Tube CPS Tube Companion Sword Botcube [Rating: 57] Favorites ----------- Power Ion Engine Engine Ion Engine Propulsion Light Treads Treads Light Treads Wheel Overtuned Huge Scrapsphere Utility Seismic Detector Device Seismic Detector Storage Large Storage Unit Processor Enhanced Optical Array Protection Improved Power Shielding Weapon Assault Rifle Energy Gun Lightning Gun Energy Cannon Heavy Phase Cannon Ballistic Gun Assault Rifle Launcher Missile Launcher Slashing Weapon Companion Sword Build | -11 -10 -10 -7 -5 ------- Run | Yrd Mat Sub Scr Fac Slots Evolved 10 | . . . . 10 Power 1 | . . . . 1 Propulsion 2 | . . . . 2 Utility 7 | . . . . 7 Weapon . | . . . . . Parts Attached 25 | 7 . 1 3 14 Power 3 | 1 . . . 2 Engine 3 | 1 . . . 2 Core . | . . . . . Reactor . | . . . . . Propulsion 6 | 2 . . 1 3 Treads 5 | 2 . . . 3 Leg . | . . . . . Wheel 1 | . . . 1 . Hover . | . . . . . Flight . | . . . . . Utility 10 | 2 . 1 1 6 Device 4 | 1 . . . 3 Storage 3 | 1 . 1 1 . Processor 1 | . . . . 1 Hackware . | . . . . . Protection 2 | . . . . 2 Artifact . | . . . . . Weapon 6 | 2 . . 1 3 Energy Gun 1 | . . . . 1 Energy Cannon 1 | . . . . 1 Ballistic Gun 2 | 2 . . . . Ballistic Cannon . | . . . . . Launcher 1 | . . . . 1 Special Weapon . | . . . . . Impact Weapon . | . . . . . Slashing Weapon 1 | . . . 1 . Piercing Weapon . | . . . . . Special Melee Weapon . | . . . . . Unidentified Prototypes 1 | . . . 1 . Corrupted Parts 2 | . . . . 2 System Corruption 7 | . . . . 7 Parts Lost 9 | . . . . 9 Power . | . . . . . Propulsion 3 | . . . . 3 Utility 3 | . . . . 3 Weapon 3 | . . . . 3 Highest Loss Streak 7 | . . . . 7 To Critical Strikes . | . . . . . Average Backups 9 | 5 7 9 10 8 Power . | 1 1 1 . . Propulsion 1 | 2 4 2 1 . Utility 2 | . 1 2 3 3 Weapon 2 | 1 1 3 3 2 Tool/Special . | . . . . . Unused Backups 23 | . . 4 12 7 Power 3 | . . 1 1 1 Propulsion 7 | . . 3 4 . Utility 6 | . . . 3 3 Weapon 4 | . . . 4 . Tool/Special 3 | . . . . 3 Average Slot Usage (%) 94 | . 100 100 99 74 Engine 13 | . 14 14 14 8 Treads 26 | . 28 28 27 20 Device 14 | . 14 14 14 18 Storage 12 | . 14 14 14 5 Ballistic Gun 23 | . 28 28 28 4 Peak Build Rating 57 | 7 8 8 23 57 Average Rating 16 | 5 7 7 10 45 On Entrance 7 | . 7 8 8 13 Naked Turns . | . . . . . Heaviest Build 61 | 14 14 19 29 61 Greatest Support 95 | 40 40 40 40 95 Greatest Overweight (x) 9 | . . . 9 1 Average Overweight (x) . | . . . . . Largest Inventory Capacity 15 | 8 8 10 15 15 Average Capacity 12 | 7 8 9 12 15 Most Carried 15 | 8 8 10 15 14 Average Carried 10 | 5 7 9 11 9 Final Capacity 15 | 8 8 10 15 15 Final Carried 15 | 7 8 10 15 9 Class Distribution -------------------- 90% | Mutant 9% | Scavenger-Mutant Dominant Class ---------------- Mutant | -10/Materials Mutant | -10/Subcaves Mutant | -7/Scraptown Scavenger-Mutant | -5/Factory Resources | -11 -10 -10 -7 -5 ----------- Run | Yrd Mat Sub Scr Fac Matter Collected 507 | 302 . 10 . 195 Remotely . | . . . . . Salvage Created 444 | 121 . . . 323 Parts 20 | 11 . . . 9 Haulers Intercepted . | . . . . . Recyclers Shooed 3 | 1 . . . 2 Parts Field Recycled . | . . . . . Retrieved Matter . | . . . . . Parts Self-Destructed 6 | . . 6 . . Prevented . | . . . . . Kills | -11 -10 -10 -7 -5 ------- Run | Yrd Mat Sub Scr Fac Combat Hostiles Destroyed 6 | . . . . 6 Guns 2 | . . . . 2 Cannons 2 | . . . . 2 AOE 1 | . . . . 1 Classes Destroyed 7 | 2 . . . 5 Builder 1 | . . . . 1 Tunneler 3 | 3 . . . . Recycler 1 | 1 . . . . Watcher 1 | . . . . 1 Grunt 3 | . . . . 3 Sentry 1 | . . . . 1 Programmer 2 | . . . . 2 Best Kill Streak 3 | 2 . . . 3 Combat Bots Only 2 | . . . . 2 Max Kills in Single Turn 1 | 1 . . . 1 Gunslinging . | . . . . . Exploded 1 | . . . . 1 Melee . | . . . . . Uniques/NPCs Destroyed . | . . . . . Combat | -11 -10 -10 -7 -5 -------- Run | Yrd Mat Sub Scr Fac Hostile Shots Fired 139 | . . . . 139 Missed 44 | . . . . 44 Hits 95 | . . . . 95 Projectile 95 | . . . . 95 Critical Strikes 10 | . . . . 10 Actively Blocked 1 | . . . . 1 Part Disruptions 2 | . . . . 2 Actively Blocked 1 | . . . . 1 Damage Taken 1877 | . . . . 1877 Core 196 | . . . . 196 Absorbed by Shields 55 | . . . . 55 Redirected to Shielding 86 | . . . . 86 Regen/Repaired (Parts) 10 | . . . . 10 Core Remaining (%) 100 | 100 . . 100 . Volleys Fired 78 | 8 . . . 70 Largest 2 | 2 . . . 2 Hottest 90 | 40 . . . 90 Shots Fired 95 | 16 . . . 79 Gun 73 | 16 . . . 57 Cannon 13 | . . . . 13 Launcher 9 | . . . . 9 Special . | . . . . . Kinetic 51 | 16 . . . 35 Thermal 13 | . . . . 13 Explosive 9 | . . . . 9 Electromagnetic 22 | . . . . 22 Robot Hit Streak 9 | 3 . . . 9 Robot Miss Streak 4 | 3 . . . 4 Penetration Max . | . . . . . Secondary Targets . | . . . . . Shots Hit Robots 53 | 7 . . . 46 Core Hits 29 | 5 . . . 24 Critical Kills . | . . . . . Critical Parts Destroyed . | . . . . . Critical Strikes . | . . . . . Melee Attacks . | . . . . . Impact . | . . . . . Slashing . | . . . . . Piercing . | . . . . . Sneak Attacks . | . . . . . Combat Hostiles . | . . . . . Follow-up Attacks . | . . . . . Damage Inflicted 1462 | 79 . . . 1383 Guns 630 | 79 . . . 551 Cannons 409 | . . . . 409 Explosions 423 | . . . . 423 Melee . | . . . . . Ramming . | . . . . . Kinetic 367 | 79 . . . 288 Thermal 409 | . . . . 409 Explosive 423 | . . . . 423 Electromagnetic 263 | . . . . 263 Impact . | . . . . . Slashing . | . . . . . Piercing . | . . . . . Highest Corruption 16 | . . . . 16 Average Corruption 8 | . . . . 8 Corruption Purged . | . . . . . Corruption Blocked . | . . . . . Effects 19 | . . . . 19 Message Errors 1 | . . . . 1 Matter Fused 4 | . . . . 4 Heat Flow Errors 1 | . . . . 1 Energy Discharges 1 | . . . . 1 Parts Rejected 2 | . . . . 2 Data Loss (minor) 3 | . . . . 3 Data Loss (major) 4 | . . . . 4 Misfires 2 | . . . . 2 Weapon Failures 1 | . . . . 1 Overload Shots . | . . . . . Overflow Damage 7 | . . . . 7 Projectiles 7 | . . . . 7 Explosions . | . . . . . Melee . | . . . . . Knockbacks . | . . . . . Impact . | . . . . . Kinetic . | . . . . . Secondary . | . . . . . Self-Inflicted Damage . | . . . . . Shots . | . . . . . Rammed . | . . . . . Targets Rammed . | . . . . . Kicked . | . . . . . Crushed . | . . . . . Highest Temperature 380 | . . . . 380 Average Temperature 151 | . . . . 151 Received Heat Transfer 430 | . . . . 430 Siege Activations . | . . . . . Martial Activations . | . . . . . Shielding Activations . | . . . . . Robots Disrupted . | . . . . . Combat Hostiles . | . . . . . Robots Corrupted 1 | . . . . 1 Combat Hostiles 1 | . . . . 1 Parts Fried . | . . . . . Impact Corruptions . | . . . . . Robots Melted . | . . . . . Combat Hostiles . | . . . . . Parts Melted 2 | . . . . 2 Heat Transferred 370 | . . . . 370 Parts Sabotaged . | . . . . . Parts Stolen . | . . . . . Parts Stripped . | . . . . . Power Chain Reactions . | . . . . . Alert | -11 -10 -10 -7 -5 ------- Run | Yrd Mat Sub Scr Fac Maximum Alert Level . | . . . . . Low Security (%) 100 | 100 100 . . 100 Level 1 . | . . . . . Level 2 . | . . . . . Level 3 . | . . . . . Level 4 . | . . . . . Level 5 . | . . . . . High Security . | . . . . . Max Security . | . . . . . Peak Influence 161 | 10 . . . 161 Initial . | . . . . . Average 31 | 1 . . . 42 Influence Increases 361 | 20 . . . 341 Destroy 0b10 Robot/C 120 | . . . . 120 Destroy 0b10 Robot/NC 30 | 20 . . . 10 Destroy Leader 32 | . . . . 32 Disable Machine 75 | . . . . 75 Destroy Structure 104 | . . . . 104 Influence Decreases 242 | 20 . . . 222 Time Decay 172 | 20 . . . 152 Lost Part 70 | . . . . 70 Squads Dispatched 4 | . 1 . . 3 Investigation 1 | . . . . 1 Extermination 1 | . . . . 1 Reinforcement 2 | . 1 . . 1 Assault . | . . . . . Garrison . | . . . . . Intercept . | . . . . . Searches Triggered . | . . . . . Construction Impeded . | . . . . . Haulers Reinforced . | . . . . . Active Scanning Responses . | . . . . . Cargo Convoy Interrupts . | . . . . . Stealth | -11 -10 -10 -7 -5 --------- Run | Yrd Mat Sub Scr Fac Distress Signals . | . . . . . Communications Jammed . | . . . . . Distress Signals . | . . . . . Times Spotted 12 | . . 1 . 11 Peak Tracking Total 2 | . 1 1 . 2 Tactical Retreats . | . . . . . Traps | -11 -10 -10 -7 -5 ------- Run | Yrd Mat Sub Scr Fac Traps Triggered 1 | . . . . 1 Indirectly . | . . . . . Trap Hack Attempts . | . . . . . Triggered . | . . . . . Disarmed . | . . . . . Reprogrammed . | . . . . . Reused . | . . . . . Traps Extracted . | . . . . . Installed . | . . . . . Triggered . | . . . . . Machines | -11 -10 -10 -7 -5 ---------- Run | Yrd Mat Sub Scr Fac Machines Disabled 5 | . . . . 5 Max in Single Turn 2 | . . . . 2 Machines Repaired . | . . . . . Machines Dismantled . | . . . . . Machines Sabotaged . | . . . . . Overloaded Fab Kills . | . . . . . Hacking | -11 -10 -10 -7 -5 --------- Run | Yrd Mat Sub Scr Fac Machines Accessed 8 | . 1 . 6 1 Terminals 1 | . 1 . . . Fabricators . | . . . . . Repair Stations . | . . . . . Recycling Units . | . . . . . Scanalyzers . | . . . . . Garrison Access 1 | . . . . 1 Total Hacks 19 | . 2 . 14 3 Successful 15 | . 1 . 14 . Failed 4 | . 1 . . 3 Catastrophic 1 | . . . . 1 Database Lockouts . | . . . . . Manual 2 | . 2 . . . Terminals 2 | . 2 . . . Fabricators . | . . . . . Repair Stations . | . . . . . Recycling Units . | . . . . . Scanalyzers . | . . . . . Garrison Access 3 | . . . . 3 Terminal Hacks 15 | . 1 . 14 . Record 10 | . . . 10 . Robot Analysis 3 | . . . 3 . Open Door 1 | . . . 1 . Registered Components 1 | . 1 . . . Fabricator Hacks . | . . . . . Repair Station Hacks . | . . . . . Recycling Unit Hacks . | . . . . . Scanalyzer . | . . . . . Garrison Access Hacks . | . . . . . Unauthorized Hacks . | . . . . . Terminals . | . . . . . Fabricators . | . . . . . Repair Stations . | . . . . . Recycling Units . | . . . . . Scanalyzers . | . . . . . Garrison Access . | . . . . . Data Cores Recovered . | . . . . . Used . | . . . . . Hacking Detections 1 | . . . . 1 Full Trace Events 1 | . . . . 1 Feedback Events . | . . . . . Feedback Blocked . | . . . . . Robot Schematics Acquired . | . . . . . Robots Built . | . . . . . Authchips . | . . . . . Time . | . . . . . Total Robot Build Rating . | . . . . . Part Schematics Acquired . | . . . . . Parts Built . | . . . . . Authchips . | . . . . . Time . | . . . . . Total Part Build Rating . | . . . . . Parts Repaired . | . . . . . Time . | . . . . . Parts Recycled . | . . . . . Recycled Matter . | . . . . . Retrieved Matter . | . . . . . Retrieved Components . | . . . . . Parts Scanalyzed . | . . . . . Part Schematics Acquired . | . . . . . Parts Damaged . | . . . . . Bothacking | -11 -10 -10 -7 -5 ------------ Run | Yrd Mat Sub Scr Fac Used RIF Installer . | . . . . . Robots Hacked . | . . . . . Non-combat . | . . . . . Combat . | . . . . . Robot Hacks Applied . | . . . . . Relay Couplers Released . | . . . . . Fabnet Peak Effective % . | . . . . . Robots Rewired . | . . . . . Allies Hacked . | . . . . . Hacks Repelled . | . . . . . Allies | -11 -10 -10 -7 -5 -------- Run | Yrd Mat Sub Scr Fac Total Allies . | . . . . . Largest Group . | . . . . . Highest-Rated Group . | . . . . . Highest-Rated Ally . | . . . . . Total Orders . | . . . . . Ally Attacks . | . . . . . Total Damage . | . . . . . Kills . | . . . . . Allies Corrupted . | . . . . . Allies Melted . | . . . . . Intel | -11 -10 -10 -7 -5 ------- Run | Yrd Mat Sub Scr Fac Active Infowar (turns) 3228 | 12 60 238 2317 601 Optics 600 | . . . . 600 Seismic 3214 | 12 60 238 2317 587 Robot Analysis Total 3 | . . . 3 . Derelict Logs Recovered 3 | . . . 3 . Drone Launches . | . . . . . Drone Recoveries . | . . . . . Exploration | -11 -10 -10 -7 -5 ------------- Run | Yrd Mat Sub Scr Fac Turns Passed 3377 | 161 60 238 2317 601 Spaces Moved 1900 | 82 32 145 1409 232 Core 18 | 11 . . 7 . Treads 1881 | 71 32 145 1401 232 Legs . | . . . . . Wheels 1 | . . . 1 . Hover . | . . . . . Flight . | . . . . . Fastest Speed 50 | 50 160 160 80 160 Average Speed 161 | 145 160 160 161 165 Slowest Speed 500 | 160 160 160 500 250 Overloaded Moves . | . . . . . Propulsion Burnouts . | . . . . . Robots Hopped . | . . . . . Potential Cave-ins . | . . . . . Cave-ins Triggered . | . . . . . Exploration Rate (%) 24 | 4 8 10 90 10 Regions Visited 4 Branch Regions 2 Pre-discovered Areas . | . . . . . Known Exits Taken . | . . . . . Unknown Exits Taken 4 | 1 1 1 1 . Scrap Searched 6 | . . . 6 . Spaces Dug 36 | . . . . 36 Terrain Destroyed 65 | . . . . 65 Melee . | . . . . . Projectile . | . . . . . AOE 65 | . . . . 65 Terrain Rammed . | . . . . . Walls Destroyed . | . . . . . Machines Disabled . | . . . . . Actions | -11 -10 -10 -7 -5 --------- Run | Yrd Mat Sub Scr Fac Total 2132 | 110 41 156 1456 369 Wait 39 | . 9 . 3 27 Move 1896 | 81 31 144 1408 232 Hop . | . . . . . Pick Up 57 | 14 1 6 20 16 Fast Attach 1 | . . . 1 . Attach 29 | 7 . . 3 19 Detach . | . . . . . Swap 6 | . . 1 3 2 Drop 26 | . . 5 18 3 Fire 78 | 8 . . . 70 Melee . | . . . . . Ram . | . . . . . Kick . | . . . . . Crush . | . . . . . Escape Stasis . | . . . . . Rewire . | . . . . . Trap . | . . . . . Miscellaneous . | . . . . . Route ------- -11/Scrapyard -10/Materials -10/Subcaves (discovered 2 exits: [*Mat] / *Scr) -7/Scraptown (discovered 2 exits: *Fac x2) -5/Factory History --------- Turn | Location | Event 5 | -11/Scrapyard | Discovered new exit (range 15) 162 | -11/Scrapyard | Entered Materials 163 | -10/Materials | Met a group of wandering Federalists 205 | -10/Materials | Discovered new exit (range 8) 222 | -10/Materials | Entered Subcaves 222 | -10/Subcaves | Accompanied by 2 allies 223 | -10/Subcaves | Shifting Twisted Machinery released Sub. Laser 223 | -10/Subcaves | Continued accompanying wandering Federalists (5) 223 | -10/Subcaves | Approached by a straggling Scientist 293 | -10/Subcaves | Discovered new exit (range 16) 322 | -10/Subcaves | Build established: Mutant 370 | -10/Subcaves | A swath of the cavern ceiling suddenly collapsed 432 | -10/Subcaves | Wandering Federalist uncovered a shortcut to Scraptown 460 | -10/Subcaves | Entered Scraptown 510 | -7/Scraptown | Visited Bundlers 590 | -7/Scraptown | Visited Assassins FH 627 | -7/Scraptown | Visited Red Mages 700 | -7/Scraptown | Visited CPS Storage 720 | -7/Scraptown | Visited TADAMA 747 | -7/Scraptown | Visited UFD Registry 769 | -7/Scraptown | Visited Artisan Demo Area 822 | -7/Scraptown | Visited Shadow of the Wyrm 1255 | -7/Scraptown | Scanned Subdweller tech in exchange for log data 1260 | -7/Scraptown | Learned Research emergency access door positions 1263 | -7/Scraptown | Learned 8 Research zone layouts 1278 | -7/Scraptown | Discovered new exit (range 11) 1506 | -7/Scraptown | Registered with UFD as "Shadoweater" 1551 | -7/Scraptown | Visited Curators Association 1573 | -7/Scraptown | Visited Research Penetration Think Tank 1609 | -7/Scraptown | Visited Botcube Research 1621 | -7/Scraptown | Found Botcube 1911 | -7/Scraptown | Visited Chapter 10 1957 | -7/Scraptown | Visited Infowarlord's Domain 1967 | -7/Scraptown | Found Exp. Terrain Scan Processor 1993 | -7/Scraptown | Visited Sword Containment 2044 | -7/Scraptown | Visited Modified Component R&D 2105 | -7/Scraptown | Visited Abandonware Association 2132 | -7/Scraptown | Learned abandonware demo "REVENGE.EXE" 2171 | -7/Scraptown | Visited Analyses Database 2209 | -7/Scraptown | Visited Cartography Club 2290 | -7/Scraptown | Found Surveybot 17 Chip 2501 | -7/Scraptown | Found Scrap Suit 2666 | -7/Scraptown | Met Optimus 2666 | -7/Scraptown | Accepted into 0bPrime 2774 | -7/Scraptown | Discovered new exit (range 3) 2777 | -7/Scraptown | Entered Factory 2777 | -5/Factory | Evolved 10 slots: Power x1, Propulsion x2, Utility x7 3282 | -5/Factory | Build established: Scavenger-Mutant 3295 | -5/Factory | System corruption reached 10% 3365 | -5/Factory | Lost 7 parts (3n2u2w) 3378 | -5/Factory | Self-destructed Last Messages --------------- 03323_ Assault Rifle destroyed. 03323_ Identified Hvy. Phase Cannon. 03328_ Destroyed Antigrav System. 03330_ Imp. Heat Sink melted. 03330_ P-70 Sage destroyed. 03332_ Destroyed Unknown Special Weapon. 03334_ Lgt. Treads destroyed. 03334_ R-10 Processor collects Imp. Medium Armor Plating. 03338_ Destroyed Imp. Heat Sink. 03340_ Antigrav System melted. 03340_ P-70 Sage destroyed. 03352_ R-10 Processor collects Mic. Fission Core. 03356_ R-10 Processor collects Unknown Special Weapon. 03363_ System corrupted: Substantial component data lost. 03364_ Matter Pump disabled. 03367_ U-05 Engineer lays Concrete. Map ----- +----------------------------------------------------+ | ######### ! #????????????????????????????????????? | | # ??# #????????????????????????????????????? | | # " ""?# #????????????????????????????????????? | | # " ""?# #????????????????????????????????????? | | # " R"# #?????????????? ?????????????????????? | | # " """# #????????????? ???????????????????? | | # " + #????????????? ??????????????????? | | # " # #????????????? ??????????????????? | | # " ### #????????????? "??????????????????? | | # " ???# #????????????? ""?????????????????? | | # " ?### ###??????????? k ""?????????????????? | | # ??# #??????????? ?????????????????? | | ######??# #???????????g g """? ??????????????? | | ????????# " #??????????? """ #???????????? | | ????##### #??????????? """ #???????????? | | ??### #???????#### #???????????? | | ### # ##???????# """ ! +???????????? | | # #????????# """ #???????????? | | # # ########## %"" #???????????? | | # % #???????????? | | # ########?# """ #???????????? | | # % ## #??????# """ #???????????? | | # # ###???#### %"" #???????????? | | # # ######## ## #???????????? | | # # # # """ #???????????? | | # # @ """ h#???????????? | | ### # u """ #???????????? | | ??##### # # % + ""??????? | | ??????## # % #### ""??????? | | ######## # + # #????????????? | | # # # # ^ ! ## ############????????????? | | # ### # ####???????????????????????? | | # """"" ### ###########??????????????????????????? | | # """"" # #??????????????????????????????????? | | # """ # #??????????????????????????????????? | | # + #??????????????????????????????????? | | # # #??????????????????????????????????? | | # "" "" # #??????????????????????????????????? | | # ""S"" #######??????????????????????????????????? | | # """" #????????????????????????????????????????? | | # #????????????????????????????????????????? | | #########????????????????????????????????????????? | | ?????????????????????????????????????????????????? | | ?????????????????????????????????????????????????? | | ?????????????????????????????????????????????????? | | ?????????????????????????????????????????????????? | | ?????????????????????????????????????????????????? | | ?????????????????????????????????????????????????? | | ?????????????????????????????????????????????????? | | ?????????????????????????????????????????????????? | +----------------------------------------------------+ Best States ------------- Heat Dissipation 54 Energy Generation 31 Energy Capacity 250 Matter Stores 300 Matter Capacity 300 Sight Range 22 Terrain Scan Density 10 Armor Coverage 225 Power Shielding 66 Evasion (%) 50 Recoil Reduction 4 Item Schematics ----------------- None Robot Schematics ------------------ None Fabricated ------------ Nothing Repaired ---------- Nothing Alien Tech Used ----------------- None Achievements -------------- None Challenges ------------ None Game ------ Seed NavigationMomentumScreen Manual? 0 Play Time 00:21:55 Cumulative 105.3 hours Start 2025.08.06 @ 22:01:06 End 2025.08.06 @ 22:21:47 Sessions 1 Manual Loads 0 Difficulty Rogue Special Mode None Game No. 189 Rogue 189 Adventurer 0 Explorer 0 Win Type - Total 1 Types 1/0/0/0/0/0/0/0/0/0 Lore% 66 Gallery% 60 Achievement% 43 Wizard Run 0 Options --------- Layout 1 ASCII 0 Keyboard 0 Movement Mouse Keybinds 0 Fullscreen 1 Font 24/Smallcaps Map View 50x35 Zoom Use 0% Tactical HUD 1 Map Filters NONE Filters NONE Steam 1 RUN: 015d62f6-3c8d-4fc8-9699-a10e2c2bfb0f